fUSD/lending_fUSD_20240129
["ID","MTS","AMOUNT","RATE_DAILY","PERIOD"]
[312946033,1706489433100,-500.0,0.00022998,2]
[312946034,1706489433110,-578.19280249,0.00022998,2]
[312946035,1706489433121,-500.0,0.00022998,2]
[312946036,1706489433132,-500.0,0.00022998,2]
[312946037,1706489433142,-4253.55434968,0.00022999,2]
[312946038,1706489433153,-109769.07470815,0.00022999,2]
[312946039,1706489433402,-1075.8,0.00022999,2]
[312946040,1706489433419,-481.792402,0.00022999,2]
[312946041,1706489433432,-1174.37054762,0.00022999,2]
[312946042,1706489433445,-576.23513454,0.00022999,2]
[312946043,1706489433458,-818.10924833,0.00022999,2]
[312946044,1706489433471,-10625.0,0.00022999,2]
[312946045,1706489433483,-1216.44,0.00022999,2]
[312946046,1706489433495,-499.16534257,0.00022999,2]
[312946047,1706489433510,-3079.21785668,0.00022999,2]
[312946048,1706489433521,-538.88,0.00022999,2]
[312946049,1706489433532,-363.0257753,0.00022999,2]
[312946050,1706489433543,-2136.07388,0.00022999,2]
[312946051,1706489433566,-544419.31616158,0.00022999,2]
[312946052,1706489433870,-1498.95358187,0.00022999,2]
[312946053,1706489433975,154.02945344,0.00021921,2]
[312946055,1706489438075,-154.02945344,0.00022031,2]
[312946056,1706489438085,-394.03885114,0.00022998,2]
[312946057,1706489438094,-7858.03169542,0.00022999,2]
[312946059,1706489438324,-372513.77073566,0.00022999,2]
[312946060,1706489438334,-1609070.33850458,0.00023,2]
[312946061,1706489438343,-479.1829241,0.00023014,2]
[312946062,1706489438352,-157.43,0.00023095,2]
[312946063,1706489438360,-16780.90213218,0.0002313,2]
[312946064,1706489438369,-192.55,0.0002318,2]
[312946065,1706489438378,-1016.92425043,0.00023212,2]
[312946066,1706489438387,-237.66,0.00023991,2]
[312946067,1706489438396,-201.54460435,0.00024,2]
[312946068,1706489438405,-821.6345251,0.00024146,2]
[312946069,1706489438414,-176.15015524,0.000243,2]
[312946070,1706489438422,-2780.96,0.00024384,2]
[312946071,1706489438431,-1669.36,0.00024384,2]
[312946073,1706489438440,-150.0,0.000245,2]
[312946074,1706489438449,-192.55,0.0002455,2]
[312946075,1706489438458,-840.0,0.00024585,2]
[312946076,1706489438466,-160.0,0.00024617,2]
[312946077,1706489438475,-250.0,0.00024658,2]
[312946078,1706489438486,-300.0,0.00024903,2]
[312946079,1706489438495,-150.0,0.0002491,2]
[312946080,1706489438504,-150.0,0.00024915,2]
[312946081,1706489438513,-150.0,0.00024916,2]
[312946082,1706489438522,-150.0,0.00024941,2]
[312946083,1706489438531,-150.0,0.00024941,2]
[312946084,1706489438540,-150.0,0.00024953,2]
[312946085,1706489438548,-150.0,0.00024969,2]
[312946086,1706489438557,-150.0,0.0002497,2]
[312946087,1706489438566,-150.0,0.00024972,2]
[312946088,1706489438575,-150.0,0.00024977,2]
[312946089,1706489438583,-150.0,0.00024978,2]
[312946090,1706489438592,-150.0,0.00024978,2]
[312946091,1706489438601,-150.0,0.00024981,2]
[312946092,1706489438609,-150.0,0.00024982,2]
[312946093,1706489438619,-150.0,0.00024983,2]
[312946094,1706489438628,-500.243572,0.00024983,2]
[312946095,1706489438637,-150.0,0.00024985,2]
[312946096,1706489438646,-150.0,0.00024992,2]
[312946097,1706489438654,-164.67200035,0.00024999,2]
[312946098,1706489438663,-150.0,0.00024999,2]
[312946099,1706489438673,-192.4053857,0.00025,5]
[312946100,1706489438682,-1903.74995284,0.00025,2]
[312946101,1706489438691,-1587.22750165,0.00025,2]
[312946102,1706489438700,-323.51152453,0.00025,2]
[312946103,1706489438709,-202.44241992,0.00025,2]
[312946104,1706489438719,-935.55189282,0.00025,2]
[312946105,1706489438728,-142013.55288242,0.00025,2]
[312946110,1706489440610,-2111.97643316,0.00022799,2]
[312946111,1706489440670,-281.58631847,0.00022799,2]
[312946112,1706489440681,-424.5191321,0.00022799,2]
[312946113,1706489440693,-4499.13545057,0.00022799,2]
[312946114,1706489440734,-892.77987388,0.00022799,2]
[312946115,1706489440747,-327.51889182,0.00022799,2]
[312946116,1706489440756,-156.12910818,0.00022998,2]
[312946117,1706489440780,-4125.17380639,0.00022998,2]
[312946118,1706489440792,-59244.94064458,0.00025,2]
[312946119,1706489440802,-550.0,0.00025,3]
[312946120,1706489440813,-150.0,0.00025017,2]
[312946121,1706489440822,-150.0,0.00025024,2]
[312946122,1706489440831,-150.0,0.00025037,2]
[312946123,1706489440840,-150.0,0.00025039,2]
[312946124,1706489440850,-150.0,0.0002504,2]
[312946125,1706489440860,-150.0,0.00025049,2]
[312946126,1706489440870,-150.0,0.00025058,2]
[312946127,1706489440880,-150.0,0.00025065,2]
[312946128,1706489440889,-150.0,0.00025069,2]
[312946129,1706489440898,-150.0,0.00025072,2]
[312946130,1706489440907,-150.0,0.00025087,2]
[312946131,1706489440917,-150.0,0.00025101,2]
[312946132,1706489440926,-150.0,0.00025103,2]
[312946133,1706489440935,-150.0,0.00025119,2]
[312946134,1706489440945,-150.0,0.00025123,2]
[312946135,1706489440955,-300.0,0.00025128,2]
[312946136,1706489440964,-150.0,0.00025129,2]
[312946137,1706489440974,-150.0,0.00025131,2]
[312946138,1706489440983,-150.0,0.00025137,2]
[312946139,1706489440994,-150.0,0.00025139,2]
[312946140,1706489441003,-150.0,0.0002514,2]
[312946141,1706489441013,-150.0,0.00025148,2]
[312946142,1706489441023,-150.0,0.0002515,2]
[312946143,1706489441033,-150.0,0.00025168,2]
[312946144,1706489441042,-151.39,0.00025249,2]
[312946145,1706489441051,-200.0,0.00025399,2]
[312946146,1706489441060,-2000.0,0.00025399,2]
[312946147,1706489441069,-200.0,0.00025399,2]
[312946148,1706489441079,-1883.99040624,0.00025399,2]
[312946149,1706489441088,-1135.26946958,0.00025491,2]
[312946150,1706489441099,-2000.0,0.00025653,2]
[312946151,1706489441108,-200.0,0.00025653,2]
[312946152,1706489441118,-164.14,0.0002597,2]
[312946153,1706489441127,-150.0,0.00026079,2]
[312946154,1706489441136,-469.30969219,0.00026885,3]
[312946155,1706489441145,-600.0,0.00027,3]
[312946156,1706489441154,-840.0,0.00027317,2]
[312946157,1706489441164,-160.0,0.00027353,2]
[312946158,1706489441173,-155.0,0.00027397,2]
[312946159,1706489441182,-157.74,0.00027397,2]
[312946160,1706489441192,-178.72,0.00027397,2]
[312946161,1706489441201,-3726.64,0.00027397,2]
[312946162,1706489441211,-155.0,0.000275,2]
[312946163,1706489441220,-3726.64,0.00027556,2]
[312946164,1706489441230,-168.26,0.00027671,2]
[312946165,1706489441240,-3726.64,0.00027714,2]
[312946166,1706489441249,-3726.64,0.00027872,2]
[312946167,1706489441259,-151.39,0.00027937,2]
[312946168,1706489441268,-686.10042416,0.00028,2]
[312946169,1706489441278,-24924.01710779,0.00028,2]
[312946170,1706489441287,-200.0,0.00028,2]
[312946171,1706489441297,-157.74,0.0002803,2]
[312946172,1706489441306,-3726.64,0.0002803,2]
[312946173,1706489441315,-1135.26946958,0.00028082,2]
[312946174,1706489441325,-3726.64,0.00028189,2]
[312946175,1706489441334,-3726.64,0.00028347,2]
[312946176,1706489441344,-3726.64,0.00028505,2]
[312946177,1706489441353,-157.74,0.00028662,2]
[312946178,1706489441362,-3726.64,0.00028664,2]
[312946179,1706489441371,-3726.64,0.00028822,2]
[312946180,1706489441381,-650.0,0.00029,3]
[312946181,1706489441391,-521.3042199,0.0002908,2]
[312946182,1706489441400,-3111.0,0.000291,2]
[312946183,1706489441410,-2542.0,0.000291,2]
[312946184,1706489441419,-157.74,0.00029294,2]
[312946185,1706489441428,-175.84884344,0.000298,2]
[312946186,1706489441437,-157.74,0.00029926,2]
[312946187,1706489441446,-1741.46968059,0.0002996,2]
[312946188,1706489441457,-542.3648679,0.00029979,2]
[312946189,1706489441466,-563.4255158,0.00029979,2]
[312946190,1706489441475,-584.4861638,0.00029979,2]
[312946191,1706489441485,-412.037456,0.00029979,2]
[312946192,1706489441495,-432.0919852,0.00029979,2]
[312946194,1706489441504,-36760.6782797,0.00029979,2]
[312946195,1706489441513,-17580.22196716,0.00029979,2]
[312946196,1706489441704,-1639.04583764,0.00029979,2]
[312946197,1706489441716,-991.93470308,0.00029979,2]
[312946198,1706489441809,-1488.91443361,0.00029979,2]
[312946199,1706489441822,-568.52842727,0.00029979,2]
[312946211,1706489443023,-154.02945344,0.00022141,2]
[312946213,1706489443032,-4017.97054656,0.00029979,2]
[312946225,1706489443132,-1851.05373879,0.00029979,2]
[312946251,1706489443361,-3294.66483035,0.00029979,2]
[312946355,1706489446151,-389.08507214,0.00029979,2]
[312946356,1706489446163,-2593.6811898,0.00029979,2]
[312946357,1706489446172,-21626.61897846,0.0003,3]
[312946358,1706489446184,-4419.63900856,0.0003,3]
[312946359,1706489446207,-58351.67331975,0.0003,3]
[312946360,1706489446216,-110788.43351165,0.0003,4]
[312946361,1706489446225,-155.0,0.0003,2]
[312946362,1706489446234,-740.00315159,0.0003,2]
[312946363,1706489446243,-325.04468722,0.0003,2]
[312946364,1706489446252,-473155.81999034,0.0003,2]
[312946365,1706489446261,-5775.96558754,0.0003,4]
[312946366,1706489446270,-583.92214289,0.0003,2]
[312946367,1706489446279,-1845.6958574,0.0003,4]
[312946368,1706489446288,-1500.0,0.0003,2]
[312946369,1706489446297,-1500.0,0.0003,2]
[312946370,1706489446306,-1500.0,0.0003,2]
[312946371,1706489446315,-1500.0,0.0003,2]
[312946372,1706489446324,-1500.0,0.0003,2]
[312946373,1706489446333,-1500.0,0.0003,2]
[312946374,1706489446344,-840.0,0.00030049,2]
[312946375,1706489446353,-164.14,0.0003008,2]
[312946376,1706489446362,-160.0,0.00030088,2]
[312946377,1706489446371,-6023.13106107,0.0003025,60]
[312946378,1706489446380,-1000.0,0.00030474,7]
[312946379,1706489446389,-1000.0,0.00030506,7]
[312946380,1706489446399,-150.62584773,0.00030552,2]
[312946381,1706489446408,-157.74,0.00030558,2]
[312946382,1706489446417,-151.39,0.00030626,2]
[312946383,1706489446426,-1135.26946958,0.00030673,2]
[312946384,1706489446435,-469.30969219,0.00030971,5]
[312946385,1706489446444,-700.0,0.00031,3]
[312946386,1706489446453,-838.0,0.00031024,2]
[312946387,1706489446462,-932.0,0.00031024,2]
[312946388,1706489446471,-1233.0,0.00031024,2]
[312946389,1706489446481,-1252.0,0.00031024,2]
[312946390,1706489446490,-1138.0,0.00031024,2]
[312946392,1706489446501,-2912.0,0.00031024,2]
[312946394,1706489446510,-19753.0,0.00031024,2]
[312946395,1706489446519,-2279.0,0.00031024,2]
[312946396,1706489446528,-1022.0,0.00031024,2]
[312946397,1706489446537,-150.0,0.00031024,2]
[312946398,1706489446546,-200.0,0.00031024,2]
[312946399,1706489446555,-157.74,0.00031191,2]
[312946400,1706489446565,-178.72,0.00031507,2]
[312946401,1706489446574,-180.0,0.00031644,2]
[312946402,1706489446583,-203.0,0.0003165,2]
[312946403,1706489446593,-4385.98,0.000317,2]
[312946404,1706489446602,-164.67200035,0.00031799,2]
[312946405,1706489446611,-150.0,0.00031799,2]
[312946406,1706489446620,-215506.289607,0.000318,3]
[312946407,1706489446628,-157.74,0.00031823,2]
[312946408,1706489446637,-200.0,0.00031865,2]
[312946409,1706489446646,-500.0,0.00031865,2]
[312946410,1706489446655,-375.20474217,0.00032,2]
[312946411,1706489446664,-157.74,0.00032455,2]
[312946412,1706489446673,-840.0,0.0003278,2]
[312946413,1706489446685,-9703.82763004,0.000328,2]
[312946414,1706489446694,-160.0,0.00032823,2]
[312946415,1706489446704,-750.0,0.00033,3]
[312946416,1706489446714,-157.74,0.00033087,2]
[312946417,1706489446723,-1135.26946958,0.00033264,5]
[312946418,1706489446733,-151.39,0.00033314,2]
[312946419,1706489446742,-157.74,0.0003372,2]
[312946420,1706489446752,-284.782,0.00034024,2]
[312946421,1706489446761,-1233.0,0.00034024,2]
[312946422,1706489446775,-363.197,0.00034024,2]
[312946423,1706489446784,-898.355,0.00034024,2]
[312946424,1706489446794,-13276.025,0.00034024,2]
[312946425,1706489446803,-2279.0,0.00034024,2]
[312946426,1706489446813,-150.0,0.00034024,2]
[312946427,1706489446822,-150.0,0.00034024,2]
[312946428,1706489446831,-153.68752778,0.00034067,2]
[312946429,1706489446840,-157.74,0.00034352,2]
[312946430,1706489446850,-9654.87283251,0.00034648,2]
[312946431,1706489446860,-8981.01105791,0.000349,4]
[312946432,1706489446869,-500.19473419,0.000349,2]
[312946433,1706489446878,-500.19473407,0.000349,2]
[312946434,1706489446887,-500.19473407,0.000349,2]
[312946435,1706489446896,-500.19473407,0.000349,2]
[312946436,1706489446906,-500.19473407,0.000349,2]
[312946437,1706489446915,-500.19473407,0.000349,2]
[312946438,1706489446924,-452.1465144,0.00034976,2]
[312946439,1706489446933,-32069.5232131,0.00034976,2]
[312946440,1706489446944,-157.74,0.00034984,2]
[312946441,1706489446953,-842.26240787,0.00035,4]
[312946442,1706489446962,-155.0,0.00035,2]
[312946443,1706489446972,-1263.30372367,0.00035,4]
[312946444,1706489446981,-155.0,0.00035,2]
[312946445,1706489446990,-5000.0,0.00035,3]
[312946446,1706489447001,-449.24142632,0.00035,4]
[312946447,1706489447010,-5000.0,0.00035,15]
[312946448,1706489447020,-1759.38701346,0.00035,2]
[312946449,1706489447030,-800.0,0.00035,3]
[312946450,1706489447039,-245.76663216,0.00035,2]
[312946451,1706489447048,-12834.73140853,0.00035,2]
[312946452,1706489447058,-169.83303304,0.00035,2]
[312946453,1706489447067,-25000.0,0.00035,7]
[312946454,1706489447076,-469.30969219,0.00035057,7]
[312946455,1706489447085,-173.38532493,0.00035407,2]
[312946456,1706489447095,-178.72,0.00035616,2]
[312946457,1706489447104,-2780.96,0.00035616,2]
[312946458,1706489447114,-1669.36,0.00035616,2]
[312946459,1706489447124,-157.74,0.00035616,2]
[312946460,1706489447134,-17947.55255658,0.000357,2]
[312946461,1706489447149,-825.12309966,0.000357,2]
[312946462,1706489491540,174.9659931,0.00022799,3]
[312946463,1706489492346,159.4590838,0.00022,2]
[312946465,1706489774988,167.63,0.00021982,2]
[312946466,1706489842903,176.65,0.00022,2]
[312946467,1706489861451,344.70295831,0.00021916,2]
[312946468,1706489871997,155.01,0.00019971,2]
[312946472,1706490434351,155.01,0.00019534,2]
[312946473,1706490508746,162.89,0.00021447,2]
[312946474,1706490562099,-3092.5884,0.00021742,2]
[312946475,1706490612870,1000.0,0.00021447,2]
[312946482,1706490632282,-479.78035848,0.00021743,2]
[312946483,1706490632292,-21.32617788,0.00021744,2]
[312946484,1706490632346,-132.96159082,0.00021744,2]
[312946485,1706490632356,-154.28776864,0.00021863,2]
[312946486,1706490632365,-176.65,0.000219,2]
[312946487,1706490632374,-582.60064054,0.00021918,2]
[312946488,1706490632385,-1118.92735708,0.00021918,2]
[312946489,1706490632397,-1825.65200238,0.00021918,2]
[312946490,1706490632406,-250.0,0.00021918,2]
[312946491,1706490632416,-154.28776864,0.00021983,2]
[312946492,1706490632425,-227.61,0.00022051,2]
[312946493,1706490632435,-154.28776864,0.00022102,2]
[312946494,1706490632444,-173.75,0.00022102,2]
[312946495,1706490632454,-499.99,0.00022102,2]
[312946496,1706490632463,-227.61,0.00022112,2]
[312946497,1706490632472,-999.99,0.00022112,2]
[312946498,1706490632481,-503.16,0.00022112,2]
[312946499,1706490632490,-227.61,0.00022172,2]
[312946500,1706490632499,-154.28776864,0.00022222,2]
[312946501,1706490632508,-227.61,0.00022233,2]
[312946502,1706490632517,-227.61,0.00022293,2]
[312946503,1706490632526,-1794.30375309,0.00022308,2]
[312946504,1706490632535,-154.28776864,0.00022341,2]
[312946505,1706490632544,-227.61,0.00022354,2]
[312946506,1706490632552,-227.61,0.00022414,2]
[312946507,1706490632561,-57.6373644,0.00022448,2]
[312946508,1706490632572,-295.3826356,0.00022448,2]
[312946509,1706490632582,-118.09268497,0.0002246,2]
[312946510,1706490632597,-36.19508367,0.0002246,2]
[312946511,1706490632606,-227.61,0.00022474,2]
[312946512,1706490632615,-10000.0,0.000225,2]
[312946513,1706490632624,-150.99,0.000225,2]
[312946514,1706490632634,-33552.04491633,0.000225,2]
[312946515,1706490632645,-2261.86346022,0.000225,2]
[312946516,1706490632656,-866.30438943,0.000225,2]
[312946518,1706490632667,-450.25,0.000225,2]
[312946520,1706490632678,-680.84723402,0.000225,2]
[312946522,1706490632687,-227.61,0.00022535,2]
[312946524,1706490632696,-150.99,0.00022548,2]
[312946526,1706490632706,-65.27734021,0.0002257,2]
[312946529,1706490632725,-212.50265979,0.0002257,2]
[312946531,1706490632734,-766.87734021,0.0002257,2]
[312946534,1706490632745,-48.48265979,0.0002257,2]
[312946536,1706490632754,-154.28776864,0.0002258,2]
[312946538,1706490632764,-442.04434976,0.00022583,2]
[312946540,1706490632775,-325.00565024,0.00022583,2]
[312946541,1706490632784,-93.79026976,0.00022595,2]
[312946542,1706490632795,-133.81973024,0.00022595,2]
[312946543,1706490632804,-445.72410264,0.00022597,2]
[312946544,1706490632815,-1064.22017222,0.00022597,2]
[312946545,1706490632826,-89.34272514,0.00022597,2]
[312946546,1706490632834,-208.33294204,0.00022597,2]
[312946547,1706490632845,-390.72,0.00022597,2]
[312946548,1706490632856,-422.84951053,0.00022597,2]
[312946549,1706490632867,-948.25014743,0.00022597,2]
[312946550,1706490632877,-1000.2065,0.00022597,2]
[312946551,1706490632885,-227.61,0.00022656,2]
[312946552,1706490632894,-1038.38601425,0.00022697,2]
[312946553,1706490632905,-13227.35106283,0.00022697,2]
[312946554,1706490632916,-2107.65555,0.00022697,2]
[312946555,1706490632928,-55915.06262814,0.00022697,2]
[312946556,1706490632939,-350.0,0.00022697,2]
[312946566,1706490638275,-789.04324868,0.00022697,2]
[312946568,1706490638287,-470200.4347961,0.00022697,2]
[312946570,1706490638296,-2644.627,0.00022698,2]
[312946572,1706490638305,-10001.538,0.00022698,2]
[312946574,1706490638314,-492.147,0.00022698,2]
[312946576,1706490638323,-71315.4393,0.00022698,2]
[312946577,1706490638333,-352.6615,0.00022698,2]
[312946579,1706490638342,-5000.0,0.00022698,2]
[312946581,1706490638351,-195.25285258,0.00022699,2]
[312946582,1706490638360,-154.28776864,0.00022699,2]
[312946584,1706490638369,-175.35362876,0.00022699,2]
[312946586,1706490638378,-1756.75965244,0.00022699,2]
[312946587,1706490638387,-418.3589664,0.00022699,2]
[312946589,1706490638396,-986.82290995,0.00022699,2]
[312946590,1706490638406,-163.19305214,0.00022699,2]
[312946592,1706490638415,-227.61,0.00022716,2]
[312946594,1706490638424,-227.61,0.00022777,2]
[312946595,1706490638433,-1324.52856252,0.00022796,2]
[312946596,1706490638442,-196.03295886,0.00022797,2]
[312946597,1706490638451,-160.22290525,0.00022797,2]
[312946598,1706490638460,-1043.56158327,0.00022797,2]
[312946599,1706490638469,-7972.32541636,0.00022797,2]
[312946600,1706490638478,-155.0,0.00022797,2]
[312946601,1706490638487,-226.24702088,0.00022797,2]
[312946602,1706490638496,-241.08864406,0.00022797,2]
[312946603,1706490638505,-370.19337342,0.00022797,2]
[312946604,1706490638514,-164.3107796,0.00022798,2]
[312946605,1706490638523,-2784.47935013,0.00022798,2]
[312946606,1706490638532,-1048873.75706972,0.00022798,2]
[312946607,1706490638541,-245000.0,0.00022799,2]
[312946608,1706490638550,-1000.0,0.00022799,2]
[312946609,1706490638559,-43462.7557,0.00022799,2]
[312946610,1706490638568,-300.0,0.00022832,2]
[312946611,1706490638577,-227.61,0.00022837,2]
[312946612,1706490638586,-227.61,0.00022898,2]
[312946613,1706490638595,-12414.39264989,0.000229,2]
[312946614,1706490638603,-12414.39264975,0.000229,2]
[312946615,1706490638612,-12414.39264975,0.000229,2]
[312946616,1706490638621,-12414.39264975,0.000229,2]
[312946617,1706490638630,-12414.39264975,0.000229,2]
[312946618,1706490638639,-227.61,0.00022958,2]
[312946619,1706490638648,-214.66902567,0.00022975,2]
[312946620,1706490638657,-155.0,0.00022998,2]
[312946621,1706490638666,-357.27227523,0.00022998,2]
[312946623,1706490638675,-2802.16583513,0.00022998,2]
[312946625,1706490638684,-307.08660911,0.00022998,2]
[312946627,1706490638693,-264.79743095,0.00022998,2]
[312946628,1706490638702,-305.35893993,0.00022998,2]
[312946630,1706490638712,-33812.01447105,0.00022999,2]
[312946632,1706490638721,-287.1988675,0.00022999,2]
[312946633,1706490638730,-155.38943818,0.00022999,2]
[312946634,1706490638738,-271312.23650583,0.00023,2]
[312946635,1706490638747,-2776106.43293673,0.00023,2]
[312946636,1706490638756,-227.61,0.00023019,2]
[312946637,1706490638765,-227.61,0.00023079,2]
[312946638,1706490638773,-17110.90213218,0.0002313,2]
[312946639,1706490638782,-227.61,0.0002314,2]
[312946640,1706490638791,-227.61,0.000232,2]
[312946641,1706490638800,-237.66,0.00023744,2]
[312946642,1706490638808,-155.01,0.00023835,2]
[312946643,1706490638817,-201.54460435,0.00024,2]
[312946644,1706490638826,-1000.0,0.00024128,2]
[312946645,1706490638835,-300.0,0.00024202,2]
[312946646,1706490638844,-176.15015524,0.000243,2]
[312946647,1706490638853,-2595.7,0.00024384,2]
[312946648,1706490638862,-1112.9,0.00024384,2]
[312946649,1706490638871,-160.55520034,0.00024548,2]
[312946650,1706490638881,-150.0,0.00024548,2]
[312946651,1706490638890,-160.55520034,0.00024548,2]
[312946652,1706490638898,-150.0,0.00024548,2]
[312946653,1706490638907,-250.0,0.00024658,2]
[312946654,1706490638916,-150.0,0.000249,2]
[312946655,1706490638925,-1903.74995284,0.00025,2]
[312946656,1706490638934,-564.4,0.00025,2]
[312946657,1706490638943,-1045.92662841,0.00025,2]
[312946658,1706490638952,-192.4053857,0.00025,5]
[312946659,1706490638962,-208.07744816,0.00025,2]
[312946660,1706490638971,-323.51152453,0.00025,2]
[312946661,1706490638979,-202.44241992,0.00025,2]
[312946662,1706490638988,-550.0,0.00025,3]
[312946663,1706490638997,-821.6345251,0.00025696,2]
[312946664,1706490639006,-150.0,0.00026079,2]
[312946665,1706490639015,-277.53003383,0.00026775,2]
[312946666,1706490639024,-1000.0,0.00026809,2]
[312946667,1706490639033,-600.0,0.00027,3]
[312946668,1706490639042,-127786.94732608,0.00028,2]
[312946669,1706490639051,-155.01,0.00028137,2]
[312946670,1706490639060,-650.0,0.00029,3]
[312946671,1706490639069,-200.0,0.00029115,3]
[312946672,1706490639078,-800.0,0.00029115,3]
[312946673,1706490639087,-1000.0,0.0002949,2]
[312946674,1706490639097,-162.89,0.00029667,2]
[312946675,1706490639106,-155.0,0.0003,2]
[312946676,1706490639116,-6082.168272,0.0003,4]
[312946677,1706490639125,-562.82980092,0.0003049,6]
[312946678,1706490639133,-1000.0,0.0003049,7]
[312946679,1706490639145,-222.89110837,0.0003049,6]
[312946680,1706490639154,-1000.0,0.0003049,7]
[312946681,1706490639163,-1000.0,0.0003049,7]
[312946682,1706490639172,-312.60302928,0.0003049,6]
[312946683,1706490639181,-1000.0,0.0003049,7]
[312946684,1706490639191,-1000.0,0.0003049,7]
[312946685,1706490639200,-336.50931946,0.0003049,5]
[312946686,1706490639209,-224.17454141,0.0003049,5]
[312946687,1706490639220,-519.42376966,0.0003049,6]
[312946688,1706490639230,-1000.0,0.0003049,7]
[312946689,1706490639239,-259.71188483,0.0003049,6]
[312946690,1706490639248,-1000.0,0.0003049,7]
[312946691,1706490639257,-1000.0,0.0003049,7]
[312946692,1706490639266,-1000.0,0.0003049,7]
[312946693,1706490639275,-415.89372798,0.0003049,6]
[312946694,1706490639285,-1000.0,0.0003049,7]
[312946695,1706490639294,-1000.0,0.0003049,7]
[312946696,1706490639304,-1084.52512606,0.0003049,6]
[312946697,1706490639313,-1000.0,0.0003049,7]
[312946698,1706490639323,-1000.0,0.0003049,7]
[312946699,1706490639332,-1141.97657191,0.0003049,6]
[312946700,1706490639341,-2260.0,0.00030698,2]
[312946701,1706490639350,-700.0,0.00031,3]
[312946702,1706490639359,-180.0,0.00031644,2]
[312946703,1706490639368,-7518.82,0.000317,2]
[312946704,1706490639378,-165.6863156,0.00031734,2]
[312946705,1706490639388,-35917.7149344,0.000318,3]
[312946706,1706490639398,-295.18332124,0.00032,2]
[312946707,1706490639407,-1000.0,0.00032171,2]
[312946708,1706490639416,-182.246,0.00032294,2]
[312946709,1706490639426,-155.01,0.00032438,2]
[312946710,1706490639435,-750.0,0.00033,3]
[312946711,1706490639444,-1021.0,0.000336,7]
[312946712,1706490639453,-164.7068891,0.00033626,2]
[312946713,1706490639463,-1756.75965243,0.00033649,2]
[312946714,1706490639475,-418.35896639,0.0003365,2]
[312946715,1706490639484,-490.28334114,0.00034,4]
[312946716,1706490639493,-316.1905739,0.00034299,6]
[312946717,1706490639502,-16562.60026491,0.000345,2]
[312946718,1706490639511,-163.7274626,0.00034876,2]
[312946719,1706490639520,-8863.24535411,0.000349,4]
[312946720,1706490639530,-500.19473407,0.000349,2]
[312946721,1706490639539,-500.19473407,0.000349,2]
[312946722,1706490639548,-500.19473407,0.000349,2]
[312946723,1706490639557,-500.19473407,0.000349,2]
[312946724,1706490639566,-162.7480361,0.00034952,2]
[312946725,1706490639575,-160.55520034,0.00034999,2]
[312946726,1706490639584,-150.0,0.00034999,2]
[312946727,1706490639593,-3546.29358837,0.00035,4]
[312946728,1706490639778,-446.41778938,0.00035,4]
[312946729,1706490639788,-175.81144393,0.00035,2]
[312946730,1706490639797,-5000.0,0.00035,3]
[312946731,1706490639806,-1263.30372367,0.00035,4]
[312946732,1706490639815,-163.85261366,0.00035,2]
[312946733,1706490639824,-169.84152469,0.00035,2]
[312946734,1706490639833,-10268.04182145,0.00035,2]
[312946735,1706490639842,-150.62584773,0.00035343,2]
[312946736,1706490639854,-161.7686096,0.00035427,2]
[312946737,1706490639863,-150.0,0.00035451,2]
[312946738,1706490639876,-150.0,0.00035459,2]
[312946739,1706490639919,-150.0,0.00035473,2]
[312946740,1706490639928,-150.0,0.00035474,2]
[312946741,1706490639937,-150.0,0.00035476,2]
[312946742,1706490639947,-150.0,0.00035479,2]